bitfinex/quotes_ETHUSD_20250519
["timestamp","ask_amount","ask_price","bid_price","bid_amount"]
[1747615356648,4.09970482,2439.2,2439.1,0.34225025]
[1747615357000,12.09970482,2439.2,2439.1,0.34225025]
[1747615357201,14.79130882,2439.2,2439.1,0.34225025]
[1747615357543,14.79130882,2439.2,2437.9,8.1288532]
[1747615357544,4.10172272,2438.0,2437.9,8.1288532]
[1747615357745,4.10172272,2438.0,2437.9,8.47127192]
[1747615358063,11.165,2438.5,2437.9,9.40586911]
[1747615358214,11.48067425,2439.0,2438.0,11.244]
[1747615358548,11.172,2439.0,2438.2,0.8971]
[1747615358716,11.172,2439.0,2438.2,4.99839586]
[1747615358904,1.19880611,2439.7,2438.5,4.10076208]
[1747615359109,4.09953675,2439.3,2438.6,0.41007621]
[1747615359331,4.10155448,2438.1,2438.0,11.244]
[1747615359750,11.168,2438.5,2438.0,11.244]
[1747615360050,5.02331806,2438.3,2437.0,0.9031]
[1747615360252,4.1023571,2437.7,2437.0,12.1471]
[1747615360421,4.10187745,2438.0,2437.1,11.25]
[1747615360744,4.10098746,2438.5,2437.1,11.25]
[1747615360745,11.166,2438.1,2437.2,0.55]
[1747615360947,28.928,2438.9,2437.2,0.55]
[1747615360948,11.171,2438.6,2437.2,28.859]
[1747615361152,11.171,2439.2,2438.2,0.55]
[1747615361450,0.8593,2439.9,2439.0,0.55]
[1747615361632,11.169,2439.8,2439.2,0.55]
[1747615361819,11.169,2439.8,2438.9,0.871]
[1747615362024,4.0998409,2439.2,2439.0,0.55]
[1747615362219,0.34019092,2439.7,2438.7,11.25]
[1747615362421,0.34019092,2439.7,2438.0,11.25]
[1747615362422,0.8593,2439.6,2438.0,11.25]
[1747615362645,8.0,2439.3,2438.1,12.375]
[1747615362847,4.10117839,2438.4,2438.2,0.55]
[1747615363052,4.10025664,2438.9,2437.8,0.871]
[1747615363053,4.10189097,2437.9,2437.8,0.871]
[1747615363236,4.10085297,2438.6,2437.8,0.871]
[1747615363409,11.165,2438.4,2437.8,0.871]
[1747615363834,4.1022275,2437.7,2437.6,11.25]
[1747615364318,4.10208716,2437.8,2437.6,11.25]
[1747615364564,4.10050452,2438.8,2437.6,11.25]
[1747615364565,0.34019092,2438.6,2437.6,12.4621]
[1747615364864,11.50619092,2438.6,2437.7,0.55]
[1747615365084,8.0,2438.4,2436.7,12.0716]
[1747615365232,17.69976665,2438.5,2436.8,11.165]
[1747615365233,4.10322731,2437.2,2436.8,11.165]
[1747615365439,11.164,2437.3,2436.8,12.37216]
[1747615365966,15.26659763,2438.1,2436.8,11.165]
[1747615366167,4.10189097,2437.9,2436.9,11.165]
[1747615366334,11.162,2437.8,2436.7,0.9066]
[1747615366531,0.8,2437.9,2436.8,11.715]
[1747615366746,4.10205923,2437.8,2437.2,0.55]
[1747615366952,15.60593741,2438.6,2437.9,0.55]
[1747615367151,4.10155448,2438.1,2438.0,11.169]
[1747615367652,4.10155448,2438.1,2437.6,0.55]
[1747615367653,11.163,2438.1,2437.6,0.55]
[1747615367838,0.34019092,2438.6,2437.6,0.55]
[1747615368034,4.10199835,2437.9,2437.6,1.7219]
[1747615368234,4.10239579,2437.6,2437.5,11.169]
[1747615368480,4.10239579,2437.6,2437.5,11.719]
[1747615368965,4.10227953,2437.7,2437.5,11.719]
[1747615369131,11.162,2437.9,2437.5,11.719]
[1747615369331,0.34019092,2438.6,2437.6,0.55]
[1747615369568,4.10110912,2438.4,2438.0,0.55]
[1747615369768,0.34019092,2438.6,2438.2,0.55]
[1747615370067,0.34019092,2438.6,2438.4,0.55]
[1747615370268,0.30515709,2439.4,2438.5,0.04100244]
[1747615370435,11.161,2439.3,2438.6,0.55]
[1747615370632,4.10085262,2438.6,2438.2,11.722]
[1747615370867,4.10121806,2438.3,2438.2,11.722]
[1747615371141,0.9048,2439.6,2438.2,11.722]
[1747615371336,4.10105754,2438.4,2438.2,11.722]
[1747615371555,0.30857096,2438.7,2437.6,12.0791]
[1747615371868,0.9048,2438.7,2437.4,11.172]
[1747615372084,11.157,2438.6,2437.5,0.9071]
[1747615372386,4.10118162,2438.4,2437.8,4.10203678]
[1747615372583,4.10087562,2438.6,2437.9,4.10177742]
[1747615372770,4.10091177,2438.5,2438.0,11.723]
[1747615372966,4.10079138,2438.6,2438.0,17.40718547]
[1747615373175,4.10079138,2438.6,2438.2,0.55]
[1747615373379,4.10115344,2438.4,2438.1,0.55]
[1747615373695,4.10100797,2438.5,2438.1,0.55]
[1747615373991,11.155,2438.8,2438.1,0.55]
[1747615374297,4.10099989,2438.5,2438.1,0.55]
[1747615374787,11.155,2438.8,2438.0,11.173]
[1747615374956,4.10007379,2439.0,2438.0,11.173]
[1747615374957,11.152,2438.7,2438.0,11.173]
[1747615375160,4.10040319,2438.8,2438.1,0.55]
[1747615375357,15.25265794,2438.7,2438.1,22.35854813]
[1747615375590,4.10072736,2438.6,2438.1,18.257]
[1747615375750,15.25258713,2438.7,2438.1,18.257]
[1747615375949,4.10088236,2438.5,2438.1,18.257]
[1747615376294,4.10072361,2438.6,2438.1,21.72189959]
[1747615376475,4.10036063,2438.9,2438.4,0.55]
[1747615376975,11.149,2439.3,2438.4,0.55]
[1747615377176,4.09965317,2439.3,2438.9,0.55]
[1747615377491,4.09938703,2439.4,2439.1,1.4339]
[1747615377786,4.09963657,2439.3,2439.1,1.4339]
[1747615378158,4.100041,2439.0,2438.9,11.173]
[1747615378501,4.09988915,2439.1,2439.0,0.55]
[1747615378997,4.09988915,2439.1,2438.9,11.173]
[1747615378998,4.100041,2439.0,2438.9,11.173]
[1747615379351,15.243041,2439.0,2438.9,11.173]
[1747615379796,4.100041,2439.0,2438.9,11.723]
[1747615381266,4.10071352,2438.6,2438.5,0.8839]
[1747615381561,11.141,2439.1,2438.1,18.627]
[1747615381562,4.10138626,2438.2,2438.1,18.627]
[1747615382069,4.10138626,2438.2,2438.1,17.707]
[1747615382368,11.137,2438.7,2438.2,0.55]
[1747615382560,4.10101634,2438.5,2438.2,0.55]
[1747615382767,4.10106884,2438.4,2438.2,0.55]
[1747615383185,4.10121806,2438.3,2438.2,0.55]
[1747615383575,11.134,2438.7,2438.2,0.55]
[1747615383774,4.10071352,2438.6,2438.2,0.55]
[1747615383989,4.10093687,2438.5,2438.2,0.55]
[1747615384192,11.134,2438.7,2438.1,17.707]
[1747615384390,4.10130169,2438.3,2438.1,17.707]
[1747615384593,4.10155448,2438.1,2438.0,11.172]
[1747615384766,4.10205923,2437.8,2437.7,0.8889]
[1747615384968,4.10355749,2437.0,2436.9,0.9361]
[1747615385175,4.10357421,2436.9,2436.8,11.173]
[1747615385370,0.36836369,2437.9,2436.8,11.173]
[1747615385571,0.36836369,2437.9,2437.1,4.10323745]
[1747615385800,4.4702799,2437.9,2437.5,0.55]
[1747615386106,0.36836369,2437.9,2437.8,0.55]
[1747615386913,15.2294391,2438.2,2437.7,0.55]
[1747615387107,4.98099792,2438.8,2437.7,0.55]
[1747615387309,11.127,2438.7,2437.8,0.55]
[1747615387514,4.10140821,2438.2,2437.8,0.55]
[1747615387710,4.1022275,2437.7,2437.6,11.173]
[1747615387938,4.10274269,2437.4,2436.9,28.882]
[1747615388142,4.10458482,2436.3,2436.2,12.0448]
[1747615388344,4.10504385,2436.1,2435.7,0.8708]
[1747615388503,11.126,2436.8,2435.7,0.8708]
[1747615388841,4.10407945,2436.6,2435.7,0.8708]
[1747615389029,0.9317,2436.4,2435.3,1.69519657]
[1747615389207,11.124,2436.6,2435.4,11.5578228]
[1747615389536,11.124,2436.7,2436.2,4.10459068]
[1747615389743,4.1035065,2437.0,2436.4,4.65434252]
[1747615389951,4.10409433,2436.6,2436.1,18.6233]
[1747615390186,0.45558288,2437.1,2436.2,11.174]
[1747615390309,4.10366715,2436.9,2436.3,4.10446666]
[1747615390617,0.45558288,2437.1,2436.2,11.174]
[1747615390618,11.57858288,2437.1,2436.2,11.174]
[1747615390810,11.124,2437.0,2436.3,0.55]
[1747615391006,4.1034401,2437.0,2436.3,0.55]
[1747615391261,11.57958288,2437.1,2436.3,0.55]
[1747615391405,4.10402622,2436.7,2436.3,0.55]
[1747615391608,4.10367767,2436.9,2436.5,0.55]
[1747615391804,4.10445916,2436.4,2436.2,11.176]
[1747615392063,11.122,2436.5,2435.7,0.8459]
[1747615392222,4.10589253,2435.6,2435.4,29.23077022]
[1747615392421,4.10593307,2435.5,2435.4,29.23077022]
[1747615392623,4.10593307,2435.5,2435.4,0.34277022]
[1747615393241,0.9276,2436.3,2435.4,0.34277022]
[1747615393530,4.10479103,2436.2,2435.7,0.55]
[1747615393705,4.10425501,2436.5,2435.9,0.55]
[1747615393906,4.10425501,2436.5,2435.9,5.88312184]
[1747615394107,4.87096233,2437.0,2435.8,11.18]
[1747615394108,4.55901049,2437.0,2436.2,0.55]
[1747615394302,11.57758288,2437.0,2436.3,11.18]
[1747615394647,0.45558288,2437.0,2436.5,0.8787]
[1747615394817,0.45558288,2437.0,2436.8,0.55]
[1747615395017,4.5589887,2437.0,2436.9,11.121]
[1747615395217,4.10424789,2436.5,2436.4,17.718]
[1747615395434,4.10400244,2436.7,2436.4,17.718]
[1747615395642,0.45558288,2437.0,2436.4,17.718]
[1747615395940,4.10424789,2436.5,2436.4,17.718]
[1747615396309,4.10376998,2436.8,2436.5,0.55]
[1747615396508,0.45558288,2437.0,2436.5,0.55]
[1747615396704,0.45558288,2437.0,2436.9,0.55]
[1747615396944,0.45558288,2437.0,2436.9,16.63437421]
[1747615397146,0.0104537,2437.0,2436.9,24.63437421]
[1747615397309,11.118,2438.1,2437.4,0.55]
[1747615397510,4.101818,2438.0,2437.6,0.55]
[1747615397710,5.42449882,2438.5,2437.6,3.89925697]
[1747615397920,0.45704967,2438.5,2438.0,4.65171115]
[1747615398123,0.45704967,2438.5,2438.2,0.55]
[1747615398321,0.45704967,2438.5,2438.3,17.719]
[1747615398521,4.10155448,2438.1,2438.0,11.121]
[1747615398827,0.45704967,2438.5,2438.1,0.55]
[1747615399138,4.55798412,2438.5,2438.1,0.55]
[1747615399332,0.45704967,2438.5,2438.1,11.121]
[1747615399851,0.45704967,2438.5,2438.2,0.55]
[1747615400345,0.45704967,2438.5,2438.2,11.12]
[1747615400547,4.0998729,2439.1,2438.3,0.55]
[1747615400749,4.10038758,2438.8,2438.3,0.55]
[1747615401047,11.11,2439.1,2438.6,0.55]
[1747615401253,11.11,2439.2,2438.6,0.55]
[1747615401552,11.109,2439.5,2438.8,0.55]
[1747615401739,4.0996612,2439.3,2439.0,0.55]
[1747615401938,4.09944531,2439.4,2439.0,0.55]
[1747615402252,4.0993188,2439.5,2439.1,11.12]
[1747615402552,4.09869661,2439.8,2439.1,11.12]
[1747615402757,4.09963516,2439.3,2439.1,11.12]
[1747615403262,4.09992321,2439.1,2438.8,0.55]
[1747615403426,4.09772053,2440.4,2439.0,0.55]
[1747615403631,4.09955702,2439.3,2439.0,0.55]
[1747615404563,4.09931515,2439.5,2439.0,0.55]
[1747615404862,4.09752099,2440.5,2439.5,0.55]
[1747615405035,11.101,2440.6,2439.7,1.4324]
[1747615405240,4.09851752,2440.0,2439.8,11.116]
[1747615405424,11.101,2440.6,2439.8,11.116]
[1747615405425,11.101,2440.6,2439.9,0.55]
[1747615405628,0.8843,2440.9,2439.9,0.55]
[1747615405849,11.1,2440.8,2439.9,0.55]
[1747615406024,4.09769682,2440.4,2439.9,0.55]
[1747615406237,4.09729678,2440.7,2439.9,0.55]
[1747615406439,11.097,2441.0,2440.1,0.55]
[1747615406667,4.09651386,2441.1,2440.2,0.55]
[1747615406826,1.21958128,2441.7,2440.8,0.55]
[1747615407031,1.21958128,2441.7,2441.1,0.8765]
[1747615407330,4.09718523,2440.7,2440.6,0.8765]
[1747615407557,4.09718523,2440.7,2440.6,1.4265]
[1747615407759,4.09631933,2441.3,2440.7,0.55]
[1747615407966,4.09701737,2440.8,2440.7,0.55]
[1747615408264,4.09567496,2441.6,2440.7,0.55]
[1747615408265,4.09576029,2441.6,2440.7,0.55]
[1747615408430,4.09628698,2441.3,2440.7,0.55]
[1747615408631,11.094,2442.1,2440.7,1.10237376]
[1747615408971,6.89649373,2442.3,2440.7,1.10237376]
[1747615408972,1.92665246,2442.3,2441.5,0.55]
[1747615409152,4.09527463,2441.9,2441.7,0.55]
[1747615409334,15.18337743,2442.4,2441.7,0.55]
[1747615409528,0.9374,2442.7,2441.7,0.55]
[1747615409529,4.0953395,2441.8,2441.7,0.55]
[1747615409735,5.03071139,2443.1,2441.7,0.55]
[1747615409942,15.18132787,2443.0,2441.7,0.55]
[1747615410142,4.09466106,2442.3,2441.7,0.55]
[1747615410347,4.09517179,2441.9,2441.8,0.34187181]
[1747615410544,4.09517179,2441.9,2441.8,12.00387181]
[1747615410831,4.09502761,2442.0,2441.8,12.00387181]
[1747615411054,4.09468527,2442.2,2441.9,0.55]
[1747615411257,4.09453245,2442.3,2442.1,0.55]
[1747615411470,4.0942064,2442.5,2442.3,0.55]
[1747615411660,1.92665246,2443.4,2442.3,0.89180182]
[1747615411661,11.086,2443.0,2442.3,0.89180182]
[1747615411848,4.09399819,2442.6,2442.5,0.55]
[1747615412035,4.09399819,2442.6,2442.5,0.89177384]
[1747615413171,4.09156961,2444.1,2442.7,0.55]
[1747615413370,4.09314021,2443.2,2442.9,0.55]
[1747615413533,4.09165302,2444.0,2442.9,0.55]
[1747615413534,4.09316032,2443.1,2443.0,11.99970389]
[1747615414235,4.09316032,2443.1,2443.0,0.34170389]
[1747615418049,0.9286,2443.7,2443.0,0.34170389]
[1747615418257,4.09282527,2443.3,2443.2,0.55]
[1747615418458,4.09282527,2443.3,2443.2,0.89167592]
[1747615418865,4.09273601,2443.4,2443.2,0.89167592]
[1747615419184,4.09254087,2443.5,2443.2,0.89167592]
[1747615419185,4.09176453,2444.0,2443.4,0.55]
[1747615419364,11.063,2444.6,2443.6,0.55]
[1747615419743,0.9092,2445.3,2443.8,0.55]
[1747615419938,11.9712,2445.3,2444.4,0.55]
[1747615420174,4.08971763,2445.2,2444.6,0.55]
[1747615420373,4.08964264,2445.3,2444.8,0.55]
[1747615420590,4.08974443,2445.2,2445.0,0.55]
[1747615420743,4.08957949,2445.3,2445.2,0.55]
[1747615421519,4.08981227,2445.1,2445.0,11.098]
[1747615421683,4.08970177,2445.2,2445.1,0.55]
[1747615421872,4.08981227,2445.1,2445.0,11.648]
[1747615422177,4.09038203,2444.8,2444.7,0.55]
[1747615422348,4.09019967,2444.9,2444.7,0.55]
[1747615422677,4.08992314,2445.1,2444.7,11.648]
[1747615422976,15.14505092,2445.6,2444.7,11.648]
[1747615422977,4.09024648,2444.9,2444.7,11.648]
[1747615423144,4.08914332,2445.5,2444.7,11.648]
[1747615423345,4.08987965,2445.1,2444.7,11.648]
[1747615423679,4.09031413,2444.8,2444.7,0.55]
[1747615423975,4.09041526,2444.8,2444.7,11.094]
[1747615424183,4.09041526,2444.8,2444.7,11.644]
[1747615424353,4.09021861,2444.9,2444.8,0.55]
[1747615424547,4.08914332,2445.5,2444.8,0.89145231]
[1747615424880,4.08914332,2445.5,2444.7,11.094]
[1747615424881,4.08999936,2445.0,2444.9,0.34143834]
[1747615426162,15.13499936,2445.0,2444.9,0.34143834]
[1747615426513,4.08999936,2445.0,2444.9,0.34143834]
[1747615428455,4.08999936,2445.0,2444.9,0.89143834]
[1747615428656,4.08981227,2445.1,2444.9,0.34143834]
[1747615428898,4.08997955,2445.0,2444.9,11.38643834]
[1747615429057,4.08997955,2445.0,2444.9,0.34143834]
[1747615429557,12.08997955,2445.0,2444.9,0.34143834]
[1747615429862,4.09148561,2444.1,2444.0,11.09157934]
[1747615430460,4.09116945,2444.3,2444.0,11.64157934]
[1747615430795,4.09148561,2444.1,2444.0,11.09157934]
[1747615431514,4.09148561,2444.1,2444.0,0.04857934]
[1747615431707,4.09148561,2444.1,2443.6,17.669]
[1747615431708,4.09215533,2443.7,2443.6,17.669]
[1747615433189,4.09282527,2443.3,2441.7,4.09540058]
[1747615433389,11.03,2444.1,2442.8,0.8328]
[1747615433390,4.09348241,2443.0,2442.8,0.8328]
[1747615433589,4.09349543,2442.9,2442.8,0.8328]
[1747615433793,4.09419852,2442.5,2442.4,0.8614]
[1747615434012,4.09419852,2442.5,2442.4,12.24618783]
[1747615434214,8.0,2443.6,2442.4,13.2861035]
[1747615434513,4.09293707,2443.3,2442.6,4.64389164]
[1747615434819,4.09311221,2443.2,2442.6,4.64389164]
[1747615435386,11.027,2443.9,2442.6,0.55]
[1747615435600,4.09371707,2442.8,2442.7,11.043]
[1747615435920,8.0,2443.8,2442.7,11.043]
[1747615436117,4.093663,2442.8,2442.7,11.043]
[1747615436316,4.0941032,2442.6,2442.4,2.2431035]
[1747615436518,4.09399819,2442.6,2442.5,11.594]
[1747615436895,4.0938954,2442.7,2442.6,0.55]
[1747615437089,4.09328724,2443.1,2442.6,0.55]
[1747615437294,11.023,2443.7,2442.8,0.55]
[1747615437519,4.09205883,2443.8,2442.8,18.221]
[1747615437827,4.09273341,2443.4,2443.0,1.4162]
[1747615438006,4.09273341,2443.4,2443.1,11.044]
[1747615438207,4.09254081,2443.5,2443.1,11.044]
[1747615438592,4.09226768,2443.7,2443.2,0.55]
[1747615438819,4.09204178,2443.8,2443.2,0.55]
[1747615439020,4.09191717,2443.9,2443.4,0.55]
[1747615439219,4.09207661,2443.8,2443.4,0.55]
[1747615439420,11.02,2444.3,2443.4,0.55]
[1747615439636,4.09215879,2443.7,2443.4,0.55]
[1747615440027,4.09204928,2443.8,2443.4,0.55]
[1747615440354,4.09098347,2444.4,2443.4,0.55]
[1747615440355,4.09165236,2444.1,2443.5,0.823]
[1747615440536,4.09182892,2443.9,2443.5,0.823]
[1747615440834,4.0919479,2443.9,2443.5,0.823]
[1747615441034,4.09207668,2443.8,2443.5,0.823]
[1747615441229,4.09174638,2444.0,2443.5,0.823]
[1747615441429,4.09151735,2444.1,2443.5,0.823]
[1747615441635,0.7,2444.3,2443.6,0.55]
[1747615441835,11.014,2444.5,2443.8,0.55]
[1747615442009,11.014,2444.8,2444.0,0.55]
[1747615442208,11.014,2445.0,2444.2,0.55]
[1747615442415,0.8979,2445.2,2444.4,0.55]
[1747615442737,4.09048994,2444.7,2444.4,0.55]
[1747615442934,0.8979,2445.2,2444.4,0.55]
[1747615443238,4.09043193,2444.8,2444.4,0.55]
[1747615443402,4.09077099,2444.6,2444.4,0.55]
[1747615443602,4.0905649,2444.7,2444.4,0.55]
[1747615443821,4.09025526,2444.9,2444.4,0.55]
[1747615444020,4.09041074,2444.8,2444.6,0.55]
[1747615444230,4.09039743,2444.8,2444.6,0.55]
[1747615444445,4.09018287,2444.9,2444.6,0.55]
[1747615444599,4.08818395,2446.1,2444.6,18.219]
[1747615444804,4.08978883,2445.2,2444.8,1.3971]
[1747615445017,4.08975274,2445.2,2445.0,0.55]
[1747615445334,4.08978674,2445.2,2445.0,0.55]
[1747615445516,4.08981227,2445.1,2445.0,0.55]
[1747615445718,4.08997955,2445.0,2444.9,11.592]
[1747615445926,4.09014683,2444.9,2444.8,1.3971]
[1747615446128,4.09014683,2444.9,2444.8,11.042]
[1747615446333,4.09048144,2444.7,2444.6,17.669]
[1747615446648,4.09008437,2445.0,2444.7,0.55]
[1747615446849,4.08976093,2445.2,2444.9,0.55]
[1747615447350,4.08976093,2445.2,2444.8,0.8309]
[1747615447351,4.08897612,2445.6,2444.6,18.64063881]
[1747615447666,4.09048144,2444.7,2444.6,17.669]
[1747615448242,4.09048144,2444.7,2444.6,28.71]
[1747615448443,4.08947777,2445.3,2444.6,28.71]
[1747615448634,4.08964501,2445.2,2444.7,0.55]
[1747615448836,4.09031413,2444.8,2444.7,0.55]
[1747615449130,4.08996931,2445.1,2444.7,0.55]
[1747615449469,4.09001295,2445.0,2444.7,3.88507772]
[1747615449638,10.997,2445.4,2444.7,3.88507772]
[1747615449842,4.09048144,2444.7,2444.6,17.669]
[1747615450043,4.09048144,2444.7,2444.6,28.71]
[1747615450736,12.08873386,2445.8,2444.7,0.55]
[1747615450935,4.08971406,2445.2,2444.9,0.55]
[1747615451232,8.0,2446.0,2444.9,0.55]
[1747615451233,10.992,2445.7,2444.9,0.55]
[1747615451428,4.08956205,2445.3,2444.9,0.55]
[1747615451639,4.08956205,2445.3,2445.1,0.55]
[1747615451846,4.08956205,2445.3,2445.2,11.59]
[1747615452427,4.08942766,2445.4,2445.3,0.55]
[1747615454760,10.99,2445.9,2444.8,0.8548]
[1747615454761,4.08897612,2445.6,2444.8,0.8548]
[1747615454970,4.08947777,2445.3,2445.2,11.039]
[1747615455176,0.8279,2445.4,2444.8,10.983]
[1747615455407,10.982,2445.5,2444.9,1.0983]
[1747615455549,15.07116657,2445.5,2444.9,1.0983]
[1747615455743,4.08997955,2445.0,2444.9,0.55]
[1747615455937,4.08997955,2445.0,2444.9,11.533]
[1747615456136,4.08997955,2445.0,2444.9,10.983]
[1747615456671,4.91787955,2445.0,2444.9,10.983]
[1747615457063,4.09137386,2444.2,2444.0,0.8346]
[1747615457267,4.09148561,2444.1,2444.0,0.8346]
[1747615457570,4.09165302,2444.0,2443.9,17.663]
[1747615457866,4.09142342,2444.2,2444.0,10.982]
[1747615458064,4.09148561,2444.1,2444.0,10.982]
[1747615458574,4.09148561,2444.1,2444.0,11.532]
[1747615459235,4.09098347,2444.4,2444.0,11.532]
[1747615459442,4.09148561,2444.1,2444.0,11.532]
[1747615460844,4.09120479,2444.3,2444.0,11.532]
[1747615461037,4.09131822,2444.2,2444.0,11.532]
[1747615461243,4.09148561,2444.1,2444.0,11.532]
[1747615462454,4.09101926,2444.4,2444.1,0.55]
[1747615462848,4.09088735,2444.5,2444.1,0.55]
[1747615463063,4.09072305,2444.6,2444.1,0.55]
[1747615463266,4.93124332,2445.5,2444.3,0.55]
[1747615463476,4.09017361,2444.9,2444.3,0.55]
[1747615463771,4.09028158,2444.9,2444.3,4.64110129]
[1747615463975,4.09028158,2444.9,2444.4,0.95871837]
[1747615464142,4.08964501,2445.2,2444.4,10.984]
[1747615464343,4.08999656,2445.0,2444.0,0.55]
[1747615464671,4.09131822,2444.2,2444.1,10.984]
[1747615465174,4.09115084,2444.3,2444.1,10.984]
[1747615465342,4.09131822,2444.2,2444.1,11.534]
[1747615465743,4.09131822,2444.2,2444.1,10.984]
[1747615465947,4.09165302,2444.0,2443.9,17.663]
[1747615466473,4.09109794,2444.4,2444.0,0.55]
[1747615466663,10.958,2444.8,2444.0,0.55]
[1747615466866,4.09128512,2444.3,2444.0,0.55]
[1747615467045,4.09148561,2444.1,2444.0,0.55]
[1747615467379,4.09050289,2444.7,2444.0,11.534]
[1747615467544,4.09090354,2444.5,2444.0,14.4537]
[1747615468281,4.09099784,2444.4,2444.0,14.4537]
[1747615468456,10.956,2444.8,2444.0,18.54532571]
[1747615468457,4.09088937,2444.5,2444.0,18.54532571]
[1747615469275,4.09088937,2444.5,2444.0,14.4537]
[1747615470064,4.09040503,2444.8,2444.2,0.55]
[1747615470265,10.95,2445.2,2444.4,0.55]
[1747615470505,0.46601067,2445.7,2444.6,0.55]
[1747615470644,0.46601067,2445.7,2444.9,0.55]
[1747615470645,4.08948767,2445.3,2444.9,0.55]
[1747615470846,4.08948767,2445.3,2444.8,4.09023233]
[1747615470847,8.46601067,2445.7,2444.8,17.667]
[1747615471071,0.8505,2445.1,2444.1,18.5465]
[1747615471268,4.09053174,2444.7,2444.4,10.984]
[1747615471466,4.09073718,2444.6,2444.4,10.984]
[1747615471685,10.947,2445.0,2444.4,10.984]
[1747615471868,4.0901965,2444.9,2444.5,0.55]
[1747615472257,4.09043077,2444.8,2444.5,0.55]
[1747615472458,4.09035395,2444.8,2444.5,2.11250767]
[1747615473484,4.08995429,2445.1,2444.4,10.984]
[1747615473654,4.09042502,2444.8,2444.4,10.984]
[1747615474055,4.09042502,2444.8,2444.5,0.55]
[1747615474586,4.09023398,2444.9,2444.5,0.55]
[1747615474789,4.09032699,2444.8,2444.5,0.55]
[1747615475290,15.02668163,2445.2,2444.1,20.69312]
[1747615475476,4.09098347,2444.4,2444.3,10.983]
[1747615478689,4.09131822,2444.2,2444.1,17.667]
[1747615478991,4.09148561,2444.1,2444.0,10.984]
[1747615479154,4.09249028,2443.5,2443.4,17.666]
[1747615479560,4.09220908,2443.7,2443.4,18.216]
[1747615479855,4.09236399,2443.6,2443.4,17.666]
[1747615480259,4.09249028,2443.5,2443.4,18.216]
[1747615480558,4.09209935,2443.8,2443.5,0.55]
[1747615480759,4.09148561,2444.1,2443.5,0.55]
[1747615480991,4.09209343,2443.8,2443.5,0.55]
[1747615482186,4.09216691,2443.7,2443.5,0.55]
[1747615482495,4.09203051,2443.8,2443.5,0.55]
[1747615483495,0.8808,2444.5,2443.5,3.96553083]
[1747615483699,4.09057995,2444.7,2443.7,4.64213593]
[1747615483997,4.09095326,2444.5,2444.2,0.55]
[1747615484215,1.28631067,2445.2,2444.4,0.55]
[1747615484393,1.28631067,2445.2,2444.4,4.64096758]
[1747615484693,10.915,2445.1,2444.6,0.55]
[1747615485077,4.09045232,2444.8,2444.6,0.55]
[1747615485285,4.09048144,2444.7,2444.6,0.55]
[1747615485525,4.09030675,2444.9,2444.6,0.55]
[1747615485681,4.09031989,2444.8,2444.6,0.55]
[1747615485877,4.09022463,2444.9,2444.7,10.914]
[1747615486085,10.912,2445.3,2444.8,0.55]
[1747615486284,4.09012224,2445.0,2444.8,0.55]
[1747615486480,4.09011176,2445.0,2444.8,0.55]
[1747615487215,4.09014683,2444.9,2444.8,0.55]
[1747615488315,4.08998055,2445.0,2444.8,0.55]
[1747615488316,4.08998895,2445.0,2444.8,0.55]
[1747615488518,10.912,2445.3,2444.3,17.669]
[1747615488718,4.09058911,2444.7,2444.4,10.913]
[1747615488897,4.09091206,2444.5,2444.3,17.669]
[1747615489229,4.09091206,2444.5,2444.4,10.913]
[1747615489592,4.09091206,2444.5,2444.4,11.463]
[1747615489806,4.08981227,2445.1,2444.4,11.462]
[1747615489987,4.09064899,2444.6,2444.4,11.462]
[1747615490401,4.09081611,2444.5,2444.4,11.462]
[1747615490817,4.09081611,2444.5,2444.4,0.55]
[1747615491023,4.09148561,2444.1,2444.0,0.32112838]
[1747615491395,4.09232279,2443.7,2443.4,10.912]
[1747615491733,4.09218091,2443.7,2443.5,0.55]
[1747615491918,4.09198005,2443.9,2443.5,0.55]
[1747615492123,4.09141186,2444.2,2443.7,4.09204137]
[1747615492421,10.894,2444.3,2443.8,0.7915]
[1747615492601,4.09142724,2444.2,2443.8,0.7915]
[1747615492802,4.09142724,2444.2,2443.8,2.13486553]
[1747615492998,4.09150309,2444.1,2443.8,2.13486553]
[1747615493326,4.09282527,2443.3,2443.2,0.32112838]
[1747615493620,4.0925001,2443.5,2443.2,0.32112838]
[1747615493824,4.09165302,2444.0,2443.2,0.32112838]
[1747615494124,10.889,2444.2,2443.4,0.55]
[1747615494424,4.09192664,2443.9,2443.5,0.7915]
[1747615494626,10.889,2444.2,2443.5,2.13492956]
[1747615494921,4.09167957,2444.0,2443.2,0.8193]
[1747615495218,4.09282527,2443.3,2443.2,0.8193]
[1747615495422,4.09273409,2443.4,2443.1,10.913]
[1747615495727,4.09244733,2443.6,2443.2,0.55]
[1747615495939,4.09222697,2443.7,2443.2,0.55]
[1747615496227,4.09192337,2443.9,2443.4,0.55]
[1747615496527,4.09236589,2443.6,2443.5,11.463]
[1747615496762,4.09215947,2443.7,2443.6,0.55]
[1747615496938,4.09215533,2443.7,2443.6,0.55]
[1747615497694,4.09215533,2443.7,2443.2,0.55]
[1747615498024,4.09215533,2443.7,2443.6,11.463]
[1747615498322,4.09209537,2443.8,2443.7,0.55]
[1747615498523,8.0,2444.2,2443.7,0.55]
[1747615498734,4.09281712,2443.4,2443.2,10.914]
[1747615498937,4.09282527,2443.3,2443.2,10.914]
[1747615499430,4.0933353,2443.0,2442.7,11.23512838]
[1747615499811,0.8046,2443.5,2442.7,12.47842518]